fUST/lending_fUST_20250924
["ID","MTS","AMOUNT","RATE_DAILY","PERIOD"]
[387286390,1758678639399,-967.09,0.00019178,2]
[387286391,1758678639408,-151.0,0.00019178,2]
[387286392,1758678639418,-229.395986,0.00019178,2]
[387286393,1758678639428,-480.0,0.00019178,2]
[387286394,1758678639438,-484.41945052,0.00019178,2]
[387286395,1758678639447,-480.0,0.00019178,2]
[387286396,1758678639457,-480.0,0.00019178,2]
[387286397,1758678639469,-481.92464442,0.00019178,2]
[387286398,1758678639478,-480.0,0.00019178,2]
[387286399,1758678639488,-471.54487997,0.00019178,2]
[387286400,1758678639785,-27.36945167,0.00019178,2]
[387286401,1758678639795,-889.81805524,0.00019178,2]
[387286402,1758678639806,-702.60194476,0.00019178,2]
[387286404,1758678639815,-484.50888341,0.00019178,2]
[387286406,1758678639824,-480.0,0.00019178,2]
[387286408,1758678639834,-480.0,0.00019178,2]
[387286410,1758678639843,-151.0,0.00019178,2]
[387286412,1758678639853,-480.0,0.00019178,2]
[387286414,1758678639862,-480.0,0.00019178,2]
[387286416,1758678639872,-480.0,0.00019178,2]
[387286418,1758678639881,-486.2363853,0.00019178,2]
[387286420,1758678639890,-483.31481797,0.00019178,2]
[387286422,1758678639899,-1393.69,0.00019178,2]
[387286424,1758678639908,-480.0,0.00019178,2]
[387286426,1758678639918,-480.0,0.00019178,2]
[387286428,1758678639928,-480.0,0.00019178,2]
[387286430,1758678639937,-480.0,0.00019178,2]
[387286432,1758678639947,-480.0,0.00019178,2]
[387286434,1758678639956,-480.0,0.00019178,2]
[387286436,1758678639965,-533.81,0.00019178,2]
[387286438,1758678639975,-562.95,0.00019178,2]
[387286440,1758678639984,-3593.02,0.00019178,2]
[387286442,1758678639994,-488.52459075,0.00019178,2]
[387286444,1758678640003,-156.956363,0.00019178,2]
[387286445,1758678640013,-10701.92443118,0.00019178,2]
[387286446,1758678640023,-189.99297313,0.00019352,2]
[387286447,1758678640033,-1828.69319865,0.00019352,2]
[387286448,1758678640042,-575.99739202,0.00019452,2]
[387286449,1758678640051,-500.0,0.00019452,2]
[387286450,1758678640060,-152.39873306,0.00019452,2]
[387286451,1758678640069,-151.0,0.00019452,2]
[387286452,1758678640079,-500.0,0.00019452,2]
[387286453,1758678640089,-151.0,0.00019452,2]
[387286454,1758678640098,-151.0,0.00019452,2]
[387286455,1758678640107,-151.0,0.00019452,2]
[387286456,1758678640116,-500.0,0.00019452,2]
[387286457,1758678640125,-151.0,0.00019452,2]
[387286458,1758678640134,-621.42286441,0.00019452,2]
[387286459,1758678640144,-503.09146978,0.00019452,2]
[387286460,1758678640153,-151.0,0.00019452,2]
[387286461,1758678640163,-480.0,0.00019452,2]
[387286462,1758678640173,-486.60050549,0.00019452,2]
[387286463,1758678640182,-485.89506615,0.00019452,2]
[387286464,1758678640191,-485.42146409,0.00019452,2]
[387286465,1758678640200,-480.0,0.00019452,2]
[387286466,1758678640210,-503.51,0.00019452,2]
[387286467,1758678640220,-480.0,0.00019452,2]
[387286468,1758678640230,-480.0,0.00019452,2]
[387286469,1758678640239,-585.47,0.00019452,2]
[387286470,1758678640249,-480.0,0.00019452,2]
[387286471,1758678640257,-616.55694452,0.00019452,2]
[387286472,1758678640267,-480.0,0.00019452,2]
[387286473,1758678640276,-480.0,0.00019452,2]
[387286474,1758678640285,-480.0,0.00019452,2]
[387286476,1758678640294,-480.0,0.00019452,2]
[387286478,1758678640303,-289.73828886,0.00019452,2]
[387286479,1758678640313,-319.59927567,0.00019452,2]
[387286481,1758678640322,-488.37081873,0.00019452,2]
[387286483,1758678640331,-480.0,0.00019452,2]
[387286485,1758678640340,-3373.46,0.00019452,2]
[387286486,1758678640349,-480.0,0.00019452,2]
[387286488,1758678640359,-480.0,0.00019452,2]
[387286489,1758678640368,-480.0,0.00019452,2]
[387286491,1758678640378,-480.0,0.00019452,2]
[387286493,1758678640387,-487.34012925,0.00019452,2]
[387286494,1758678640396,-567.79,0.00019452,2]
[387286496,1758678640405,-480.0,0.00019452,2]
[387286497,1758678640415,-480.0,0.00019452,2]
[387286499,1758678640425,-480.0,0.00019452,2]
[387286500,1758678640434,-480.0,0.00019452,2]
[387286502,1758678640443,-480.0,0.00019452,2]
[387286504,1758678640453,-884.19,0.00019452,2]
[387286506,1758678640466,-1118.69,0.00019452,2]
[387286507,1758678640475,-62.18877239,0.00019452,2]
[387286672,1758678643034,-417.81122761,0.00019452,2]
[387286674,1758678643045,-480.0,0.00019452,2]
[387286676,1758678643056,-62.18877239,0.00019452,2]
[387286679,1758678643067,-417.81122761,0.00019452,2]
[387286681,1758678643077,-59.93757237,0.00019452,2]
[387286869,1758678645812,-420.06242763,0.00019452,2]
[387286870,1758678645822,-480.0,0.00019452,2]
[387286871,1758678645832,-480.0,0.00019452,2]
[387286872,1758678645841,-478.72009062,0.00019452,2]
[387286873,1758678645866,-1.27990938,0.00019452,2]
[387286875,1758678645875,-427.17849453,0.00019452,2]
[387287068,1758678652137,533.0,0.00027397,120]
[387287104,1758679631107,-177.64230191,0.00019078,2]
[387287105,1758679631128,-300.0,0.00019133,2]
[387287106,1758679631154,-356.84659106,0.00019134,2]
[387287107,1758679631175,-4838.0,0.00019134,2]
[387287108,1758679631196,-480.0,0.00019178,2]
[387287109,1758679631216,-480.0,0.00019178,2]
[387287110,1758679631237,-485.56264867,0.00019178,2]
[387287111,1758679631258,-480.0,0.00019178,2]
[387287112,1758679631278,-480.0,0.00019178,2]
[387287113,1758679631297,-480.0,0.00019178,2]
[387287114,1758679631319,-492.16496744,0.00019178,2]
[387287115,1758679631338,-480.0,0.00019178,2]
[387287116,1758679631357,-480.0,0.00019178,2]
[387287117,1758679631377,-480.0,0.00019178,2]
[387287118,1758679631397,-503.08610398,0.00019178,2]
[387287119,1758679631417,-521.81248338,0.00019178,2]
[387287120,1758679631437,-480.0,0.00019178,2]
[387287121,1758679631456,-480.0,0.00019178,2]
[387287122,1758679631477,-480.0,0.00019178,2]
[387287123,1758679631496,-480.0,0.00019178,2]
[387287124,1758679631516,-480.0,0.00019178,2]
[387287125,1758679631536,-527.54,0.00019178,2]
[387287126,1758679631556,-480.0,0.00019178,2]
[387287127,1758679631577,-480.0,0.00019178,2]
[387287128,1758679631598,-480.0,0.00019178,2]
[387287129,1758679631618,-1055.6,0.00019178,2]
[387287130,1758679631638,-480.0,0.00019178,2]
[387287131,1758679631657,-204.38865219,0.00019178,2]
[387287132,1758679631678,-480.0,0.00019178,2]
[387287133,1758679631698,-480.0,0.00019178,2]
[387287134,1758679631718,-480.0,0.00019178,2]
[387287135,1758679631740,-536.68,0.00019178,2]
[387287136,1758679631760,-480.0,0.00019178,2]
[387287137,1758679631782,-3092.34,0.00019178,2]
[387287138,1758679631802,-480.0,0.00019178,2]
[387287139,1758679631822,-480.0,0.00019178,2]
[387287140,1758679631842,-480.0,0.00019178,2]
[387287141,1758679631863,-480.0,0.00019178,2]
[387287142,1758679631882,-481.64612892,0.00019178,2]
[387287143,1758679631902,-480.0,0.00019178,2]
[387287144,1758679631923,-480.0,0.00019178,2]
[387287145,1758679631943,-480.0,0.00019178,2]
[387287146,1758679631963,-480.0,0.00019178,2]
[387287147,1758679631984,-926.8,0.00019178,2]
[387287148,1758679632006,-480.0,0.00019178,2]
[387287149,1758679632026,-480.0,0.00019178,2]
[387287150,1758679632046,-480.0,0.00019178,2]
[387287151,1758679632068,-520.48,0.00019178,2]
[387287152,1758679632089,-480.0,0.00019178,2]
[387287153,1758679632111,-1526.07,0.00019178,2]
[387287154,1758679632131,-501.91734282,0.00019178,2]
[387287155,1758679632161,-354.01608456,0.00019178,2]
[387287156,1758679632183,-500.0,0.00019178,2]
[387287157,1758679632202,-480.0,0.00019178,2]
[387287158,1758679632222,-491.6025369,0.00019178,2]
[387287159,1758679632243,-487.99041536,0.00019178,2]
[387287160,1758679632262,-361.87259804,0.00019178,2]
[387287161,1758679632282,-279.9984505,0.00019178,2]
[387287162,1758679632304,-1335.62,0.00019178,2]
[387287163,1758679632324,-480.0,0.00019178,2]
[387287164,1758679632343,-487.12795841,0.00019178,2]
[387287165,1758679632362,-480.0,0.00019178,2]
[387287166,1758679632385,-480.0,0.00019178,2]
[387287167,1758679632407,-480.0,0.00019178,2]
[387287168,1758679632429,-539.49,0.00019178,2]
[387287169,1758679632450,-480.0,0.00019178,2]
[387287170,1758679632471,-480.0,0.00019178,2]
[387287171,1758679632504,-516.6274575,0.00019178,2]
[387287172,1758679632528,-480.0,0.00019178,2]
[387287173,1758679632553,-480.0,0.00019178,2]
[387287174,1758679632573,-3921.81,0.00019178,2]
[387287175,1758679632595,-480.0,0.00019178,2]
[387287176,1758679632618,-480.0,0.00019178,2]
[387287177,1758679632641,-400.68160005,0.00019178,2]
[387287178,1758679632662,-480.0,0.00019178,2]
[387287179,1758679632684,-480.0,0.00019178,2]
[387287180,1758679632705,-1423.72,0.00019178,2]
[387287181,1758679632727,-480.0,0.00019178,2]
[387287182,1758679632748,-480.0,0.00019178,2]
[387287183,1758679632768,-197.37294474,0.00019178,2]
[387287184,1758679632791,-168.0,0.00019327,2]
[387287185,1758679632812,-510.68505076,0.00019451,2]
[387287186,1758679632831,-485.28691878,0.00019452,2]
[387287187,1758679632850,-480.0,0.00019452,2]
[387287188,1758679632869,-480.0,0.00019452,2]
[387287189,1758679632889,-480.0,0.00019452,2]
[387287190,1758679632909,-501.54109433,0.00019452,2]
[387287191,1758679632929,-480.0,0.00019452,2]
[387287192,1758679632948,-480.0,0.00019452,2]
[387287193,1758679632968,-480.0,0.00019452,2]
[387287194,1758679632988,-480.0,0.00019452,2]
[387287195,1758679633008,-480.0,0.00019452,2]
[387287196,1758679633029,-480.0,0.00019452,2]
[387287197,1758679633050,-480.0,0.00019452,2]
[387287198,1758679633070,-480.0,0.00019452,2]
[387287199,1758679633090,-480.0,0.00019452,2]
[387287200,1758679633111,-480.0,0.00019452,2]
[387287201,1758679633133,-527.54,0.00019452,2]
[387287202,1758679633156,-480.0,0.00019452,2]
[387287203,1758679633178,-497.39725448,0.00019452,2]
[387287204,1758679633200,-500.0,0.00019452,2]
[387287205,1758679633222,-151.0,0.00019452,2]
[387287206,1758679633243,-199.3671001,0.00019452,2]
[387287207,1758679633263,-151.0,0.00019452,2]
[387287208,1758679633285,-499.66956192,0.00019452,2]
[387287209,1758679633308,-1055.6,0.00019452,2]
[387287210,1758679633329,-480.0,0.00019452,2]
[387287211,1758679633349,-480.0,0.00019452,2]
[387287212,1758679633458,-480.0,0.00019452,2]
[387287213,1758679633480,-498.31695793,0.00019452,2]
[387287214,1758679633500,-536.68,0.00019452,2]
[387287215,1758679633523,-480.0,0.00019452,2]
[387287216,1758679633546,-3092.34,0.00019452,2]
[387287217,1758679633566,-480.0,0.00019452,2]
[387287218,1758679633586,-480.0,0.00019452,2]
[387287219,1758679633606,-480.0,0.00019452,2]
[387287220,1758679633628,-480.0,0.00019452,2]
[387287221,1758679633648,-480.0,0.00019452,2]
[387287222,1758679633668,-199.02807492,0.00019452,2]
[387287223,1758679633687,-151.0,0.00019452,2]
[387287224,1758679633707,-480.0,0.00019452,2]
[387287225,1758679633727,-480.0,0.00019452,2]
[387287226,1758679633747,-480.0,0.00019452,2]
[387287227,1758679633768,-926.8,0.00019452,2]
[387287228,1758679633788,-480.0,0.00019452,2]
[387287229,1758679633809,-480.0,0.00019452,2]
[387287230,1758679633829,-480.0,0.00019452,2]
[387287231,1758679633850,-520.48,0.00019452,2]
[387287232,1758679633869,-480.0,0.00019452,2]
[387287233,1758679633890,-1526.07,0.00019452,2]
[387287234,1758679633909,-480.0,0.00019452,2]
[387287235,1758679633929,-535.93829835,0.00019452,2]
[387287236,1758679635832,191.56,0.00027397,120]
[387287364,1758679839909,-300.0,0.00019177,2]
[387287366,1758679839919,-810.51,0.00019178,2]
[387287368,1758679839929,-849.57,0.00019178,2]
[387287370,1758679839939,-480.0,0.00019178,2]
[387287372,1758679839949,-480.0,0.00019178,2]
[387287374,1758679839959,-480.0,0.00019178,2]
[387287376,1758679839969,-491.96,0.00019178,2]
[387287378,1758679839978,-480.0,0.00019178,2]
[387287380,1758679839989,-1257.63,0.00019178,2]
[387287382,1758679839999,-480.0,0.00019178,2]
[387287384,1758679840009,-480.0,0.00019178,2]
[387287386,1758679840019,-480.0,0.00019178,2]
[387287388,1758679840028,-480.0,0.00019178,2]
[387287390,1758679840039,-517.01,0.00019178,2]
[387287392,1758679840048,-480.0,0.00019178,2]
[387287394,1758679840058,-457.89231436,0.00019178,2]
[387287396,1758679840067,-2834.64,0.00019178,2]
[387287398,1758679840077,-480.0,0.00019178,2]
[387287399,1758679840086,-505.52310637,0.00019178,2]
[387287401,1758679840096,-480.0,0.00019178,2]
[387287403,1758679840106,-480.0,0.00019178,2]
[387287405,1758679840115,-480.0,0.00019178,2]
[387287407,1758679840125,-480.0,0.00019178,2]
[387287409,1758679840135,-480.0,0.00019178,2]
[387287411,1758679840144,-336.05763702,0.00019178,2]
[387287512,1758679841582,-143.94236298,0.00019178,2]
[387287514,1758679841592,-214.96707685,0.00019178,2]
[387287519,1758679841634,-3543.44292315,0.00019178,2]
[387287521,1758679841644,-480.0,0.00019178,2]
[387287523,1758679841653,-480.0,0.00019178,2]
[387287525,1758679841663,-480.0,0.00019178,2]
[387287527,1758679841672,-480.0,0.00019178,2]
[387287529,1758679841681,-480.0,0.00019178,2]
[387287531,1758679841690,-480.0,0.00019178,2]
[387287533,1758679841700,-480.0,0.00019178,2]
[387287535,1758679841709,-480.0,0.00019178,2]
[387287537,1758679841718,-177.6423019,0.00019352,2]
[387287539,1758679841728,-480.0,0.00019452,2]
[387287541,1758679841738,-480.0,0.00019452,2]
[387287543,1758679841747,-480.0,0.00019452,2]
[387287545,1758679841757,-480.0,0.00019452,2]
[387287547,1758679841766,-480.0,0.00019452,2]
[387287549,1758679841776,-560.70760609,0.00019452,2]
[387287551,1758679841785,-1423.72,0.00019452,2]
[387287553,1758679841795,-810.51,0.00019452,2]
[387287555,1758679841805,-849.57,0.00019452,2]
[387287557,1758679841814,-480.0,0.00019452,2]
[387287558,1758679841823,-580.4747783,0.00019452,2]
[387287560,1758679841833,-480.0,0.00019452,2]
[387287562,1758679841842,-491.96,0.00019452,2]
[387287564,1758679841851,-151.0,0.00019452,2]
[387287566,1758679841860,-480.0,0.00019452,2]
[387287568,1758679841870,-1257.63,0.00019452,2]
[387287570,1758679841879,-480.0,0.00019452,2]
[387287572,1758679841888,-480.0,0.00019452,2]
[387287574,1758679841897,-480.0,0.00019452,2]
[387287576,1758679841906,-480.0,0.00019452,2]
[387287578,1758679841915,-517.01,0.00019452,2]
[387287580,1758679841924,-480.0,0.00019452,2]
[387287582,1758679841933,-2834.64,0.00019452,2]
[387287584,1758679841942,-308.95122085,0.00019452,2]
[387287586,1758679841951,-480.0,0.00019452,2]
[387287588,1758679841960,-480.0,0.00019452,2]
[387287590,1758679841969,-480.0,0.00019452,2]
[387287592,1758679841978,-500.10650075,0.00019452,2]
[387287594,1758679841987,-545.12059536,0.00019452,2]
[387287596,1758679841996,-3758.41,0.00019452,2]
[387287598,1758679842005,-480.0,0.00019452,2]
[387287600,1758679842014,-480.0,0.00019452,2]
[387287602,1758679842023,-480.0,0.00019452,2]
[387287604,1758679842032,-480.0,0.00019452,2]
[387287606,1758679842041,-480.0,0.00019452,2]
[387287608,1758679842051,-480.0,0.00019452,2]
[387287610,1758679842061,-480.0,0.00019452,2]
[387287612,1758679842071,-168.0,0.00019497,2]
[387287614,1758679842080,-600.000001,0.000195,2]
[387287616,1758679842090,-168.0,0.0001952,2]
[387287618,1758679842099,-151.99437852,0.00019626,2]
[387287620,1758679842110,-151.0,0.00019726,2]
[387287622,1758679842119,-480.0,0.00019726,2]
[387287624,1758679842128,-486.09770782,0.00019726,2]
[387287625,1758679842137,-480.0,0.00019726,2]
[387287627,1758679842147,-480.0,0.00019726,2]
[387287629,1758679842156,-480.0,0.00019726,2]
[387287631,1758679842165,-502.2268795,0.00019726,2]
[387287633,1758679842174,-527.54,0.00019726,2]
[387287635,1758679842184,-480.0,0.00019726,2]
[387287638,1758679842194,-480.0,0.00019726,2]
[387287639,1758679842205,-480.0,0.00019726,2]
[387287642,1758679842216,-234.24017576,0.00019726,2]
[387287644,1758679842226,-480.0,0.00019726,2]
[387287646,1758679842235,-1526.07,0.00019726,2]
[387287648,1758679842245,-480.0,0.00019726,2]
[387287649,1758679842254,-499.62864883,0.00019726,2]
[387287652,1758679842263,-480.0,0.00019726,2]
[387287654,1758679842273,-480.0,0.00019726,2]
[387287655,1758679842282,-289.13650876,0.00019726,2]
[387287657,1758679842293,-261.67969469,0.00019726,2]
[387287660,1758679842305,-1423.72,0.00019726,2]
[387287662,1758679842314,-810.51,0.00019726,2]
[387287663,1758679842324,-849.57,0.00019726,2]
[387287665,1758679842333,-480.0,0.00019726,2]
[387287667,1758679842342,-480.0,0.00019726,2]
[387287669,1758679842351,-491.96,0.00019726,2]
[387287671,1758679842362,-480.0,0.00019726,2]
[387287673,1758679842371,-1257.63,0.00019726,2]
[387287675,1758679842380,-151.0,0.00019726,2]
[387287677,1758679842390,-500.0,0.00019726,2]
[387287679,1758679842399,-480.0,0.00019726,2]
[387287681,1758679842408,-480.0,0.00019726,2]
[387287683,1758679842417,-268.58313582,0.00019726,2]
[387287685,1758679842426,-151.0,0.00019726,2]
[387287687,1758679842435,-151.0,0.00019726,2]
[387287689,1758679842444,-480.0,0.00019726,2]
[387287691,1758679842454,-517.01,0.00019726,2]
[387287693,1758679842463,-480.0,0.00019726,2]
[387287696,1758679842472,-2834.64,0.00019726,2]
[387287699,1758679842482,-480.0,0.00019726,2]
[387287702,1758679842492,-480.0,0.00019726,2]
[387287705,1758679842501,-198.91630416,0.00019726,2]
[387287708,1758679842511,-199.77693005,0.00019726,2]
[387287711,1758679842520,-480.0,0.00019726,2]
[387287714,1758679842530,-3758.41,0.00019726,2]
[387287718,1758679842539,-480.0,0.00019726,2]
[387287721,1758679842548,-480.0,0.00019726,2]
[387287724,1758679842557,-480.0,0.00019726,2]
[387287726,1758679842567,-195.78473015,0.00019726,2]
[387287729,1758679842576,-480.0,0.00019726,2]
[387287731,1758679842585,-480.0,0.00019726,2]
[387287733,1758679842595,-480.0,0.00019726,2]
[387287735,1758679842605,-500.0,0.00019773,2]
[387287737,1758679842614,-500.0,0.00019773,2]
[387287739,1758679842623,-500.0,0.00019773,2]
[387287741,1758679842633,-500.0,0.00019773,2]
[387287743,1758679842642,-500.0,0.00019773,2]
[387287745,1758679842652,-500.0,0.00019773,2]
[387287747,1758679842661,-500.0,0.00019773,2]
[387287749,1758679842670,-500.0,0.00019773,2]
[387287751,1758679842679,-168.0,0.00019795,2]
[387287753,1758679842688,-168.0,0.00019891,2]
[387287755,1758679842697,-1287.28404028,0.000199,2]
[387287757,1758679842706,-168.0,0.00019904,2]
[387287759,1758679842715,-168.0,0.00019935,2]
[387287761,1758679842724,-285.80983285,0.0002,2]
[387287763,1758679842733,-151.0,0.0002,2]
[387287765,1758679842744,-500.0,0.0002,2]
[387287767,1758679842753,-152.73235691,0.0002,2]
[387287769,1758679842762,-168.51959118,0.0002,2]
[387287771,1758679842771,-480.0,0.0002,2]
[387287773,1758679842781,-480.0,0.0002,2]
[387287775,1758679842789,-480.0,0.0002,2]
[387287777,1758679842798,-480.0,0.0002,2]
[387287779,1758679842808,-527.54,0.0002,2]
[387287781,1758679842818,-480.0,0.0002,2]
[387287783,1758679842828,-480.0,0.0002,2]
[387287785,1758679842837,-480.0,0.0002,2]
[387287787,1758679842846,-398.98451855,0.0002,2]
[387287789,1758679842855,-1526.07,0.0002,2]
[387287791,1758679842864,-480.0,0.0002,2]
[387287793,1758679842874,-480.0,0.0002,2]
[387287795,1758679842884,-480.0,0.0002,2]
[387287797,1758679842893,-1423.72,0.0002,2]
[387287799,1758679842902,-810.51,0.0002,2]
[387287801,1758679842911,-849.57,0.0002,2]
[387287803,1758679842920,-480.0,0.0002,2]
[387287805,1758679842930,-480.0,0.0002,2]
[387287807,1758679842939,-491.96,0.0002,2]
[387287809,1758679842947,-590.09931395,0.0002,2]
[387287810,1758679842957,-1257.63,0.0002,2]
[387287812,1758679842966,-480.0,0.0002,2]
[387287814,1758679842975,-480.0,0.0002,2]
[387287816,1758679842985,-480.0,0.0002,2]
[387287818,1758679842995,-517.01,0.0002,2]
[387287820,1758679843004,-480.0,0.0002,2]
[387287822,1758679843013,-2834.64,0.0002,2]
[387287824,1758679843022,-480.0,0.0002,2]
[387287826,1758679843031,-480.0,0.0002,2]
[387287828,1758679843041,-480.0,0.0002,2]
[387287831,1758679843050,-3758.41,0.0002,2]
[387287834,1758679843059,-480.0,0.0002,2]
[387287837,1758679843068,-480.0,0.0002,2]
[387287840,1758679843079,-480.0,0.0002,2]
[387287843,1758679843088,-480.0,0.0002,2]
[387287845,1758679843097,-480.0,0.0002,2]
[387287847,1758679843107,-480.0,0.0002,2]
[387287849,1758679843116,-168.0,0.00020017,2]
[387287851,1758679843127,-168.0,0.00020256,2]
[387287853,1758679843136,-168.0,0.00020257,2]
[387287855,1758679843146,-168.0,0.00020259,2]
[387287857,1758679843156,-486.6743332,0.00020273,2]
[387287859,1758679843165,-480.0,0.00020273,2]
[387287861,1758679843175,-480.0,0.00020273,2]
[387287863,1758679843184,-448.58366052,0.00020273,2]
[387287865,1758679843193,-480.0,0.00020273,2]
[387287867,1758679843207,-527.54,0.00020273,2]
[387287869,1758679843216,-480.0,0.00020273,2]
[387287871,1758679843225,-554.96345151,0.00020273,2]
[387287873,1758679843235,-480.0,0.00020273,2]
[387287876,1758679843248,-1526.07,0.00020273,2]
[387287878,1758679843258,-480.0,0.00020273,2]
[387287880,1758679843267,-191.86139227,0.00020273,2]
[387287882,1758679843278,-480.0,0.00020273,2]
[387287883,1758679843288,-1423.72,0.00020273,2]
[387287885,1758679843298,-810.51,0.00020273,2]
[387287887,1758679843307,-849.57,0.00020273,2]
[387287889,1758679843317,-480.0,0.00020273,2]
[387287891,1758679843326,-389.04150556,0.00020273,2]
[387287893,1758679843336,-491.96,0.00020273,2]
[387287895,1758679843345,-1257.63,0.00020273,2]
[387287897,1758679843355,-480.0,0.00020273,2]
[387287899,1758679843365,-480.0,0.00020273,2]
[387287901,1758679843374,-480.0,0.00020273,2]
[387287904,1758679843384,-517.01,0.00020273,2]
[387287906,1758679843393,-480.0,0.00020273,2]
[387287908,1758679843403,-2834.64,0.00020273,2]
[387287909,1758679843412,-480.0,0.00020273,2]
[387287911,1758679843421,-480.0,0.00020273,2]
[387287914,1758679843431,-480.0,0.00020273,2]
[387287916,1758679843441,-3758.41,0.00020273,2]
[387287918,1758679843450,-480.0,0.00020273,2]
[387287920,1758679843459,-480.0,0.00020273,2]
[387287922,1758679843468,-480.0,0.00020273,2]
[387287924,1758679843478,-445.41985038,0.00020273,2]
[387287926,1758679843488,-480.0,0.00020273,2]
[387287928,1758679843498,-480.0,0.00020273,2]
[387287930,1758679843508,-202.08522027,0.00020274,2]
[387287932,1758679843517,-500.0,0.00020274,2]
[387287934,1758679843529,-168.0,0.00020274,2]
[387287936,1758679843538,-168.0,0.00020293,2]
[387287938,1758679843547,-168.0,0.00020306,2]
[387287940,1758679843557,-1000.0,0.00020321,2]
[387287942,1758679843567,-648.06391225,0.00020321,2]
[387287944,1758679843576,-1000.0,0.00020321,2]
[387287946,1758679843585,-1000.0,0.00020321,2]
[387287948,1758679843594,-1000.0,0.00020321,2]
[387287950,1758679843603,-1005.8860195,0.00020321,2]
[387287952,1758679843612,-1000.0,0.00020321,2]
[387287954,1758679843622,-1000.0,0.00020321,2]
[387287956,1758679843631,-423.7151328,0.00020462,2]
[387287958,1758679843641,-1699.45,0.00020466,2]
[387287960,1758679843650,-2029.18,0.00020469,2]
[387287962,1758679843660,-500.0,0.00020546,2]
[387287964,1758679843669,-500.0,0.00020546,2]
[387287966,1758679843678,-500.0,0.00020546,2]
[387287968,1758679843687,-500.0,0.00020546,2]
[387287970,1758679843696,-500.0,0.00020546,2]
[387287972,1758679843706,-260.42868436,0.00020546,2]
[387287974,1758679843715,-480.0,0.00020547,2]
[387287976,1758679843724,-480.0,0.00020547,2]
[387287978,1758679843735,-480.0,0.00020547,2]
[387287980,1758679843745,-527.54,0.00020547,2]
[387287982,1758679843754,-480.0,0.00020547,2]
[387287984,1758679843763,-619.88087303,0.00020547,2]
[387287986,1758679843773,-1526.07,0.00020547,2]
[387287988,1758679843782,-480.0,0.00020547,2]
[387287990,1758679843791,-480.0,0.00020547,2]
[387287992,1758679843801,-1423.72,0.00020547,2]
[387287994,1758679843810,-810.51,0.00020547,2]
[387287996,1758679843819,-849.57,0.00020547,2]
[387287998,1758679843829,-480.0,0.00020547,2]
[387288000,1758679843838,-491.96,0.00020547,2]
[387288002,1758679843847,-1257.63,0.00020547,2]
[387288004,1758679843856,-480.0,0.00020547,2]
[387288007,1758679843866,-480.0,0.00020547,2]
[387288008,1758679843875,-270.0266373,0.00020547,2]
[387288010,1758679843885,-517.01,0.00020547,2]
[387288012,1758679843894,-480.0,0.00020547,2]
[387288014,1758679843903,-2834.64,0.00020547,2]
[387288017,1758679843913,-480.0,0.00020547,2]
[387288019,1758679843922,-480.0,0.00020547,2]
[387288021,1758679843931,-353.8065751,0.00020547,2]